bitfinex/quotes_SOLUSD_20240626
["timestamp","ask_amount","ask_price","bid_price","bid_amount"]
[1719420505498,20.0,136.31,136.25,18.3478]
[1719420505799,7.3367,136.3,136.25,25.6871]
[1719420505984,7.3373,136.29,136.24,7.3398]
[1719420506193,20.0,136.28,136.24,18.3491]
[1719420506703,20.0,136.28,136.24,25.6889]
[1719420506882,20.0,136.28,136.25,7.3394]
[1719420507085,23.76034737,136.36,136.26,18.3464]
[1719420507303,23.83268162,136.35,136.28,18.3441]
[1719420508705,7.3351,136.33,136.28,25.6818]
[1719420508924,20.0,136.32,136.27,0.17]
[1719420509080,7.3363,136.31,136.27,0.17]
[1719420509412,18.337,136.34,136.27,0.17]
[1719420509413,20.0,136.3,136.27,18.5155]
[1719420511604,20.0,136.27,136.19,24.8599]
[1719420511789,20.0,136.29,136.19,24.8599]
[1719420512007,7.3392,136.26,136.21,7.3415]
[1719420512194,27.3394,136.25,136.2,7.3418]
[1719420512401,7.3388,136.27,136.21,18.3535]
[1719420512598,20.0,136.26,136.2,7.342]
[1719420512797,20.0,136.26,136.19,6.5036]
[1719420513211,7.3404,136.24,136.19,13.8462]
[1719420513514,36.6857,136.3,136.17,0.8513774]
[1719420513515,20.0,136.23,136.17,0.8513774]
[1719420513687,7.3426,136.2,136.17,0.8513774]
[1719420514090,7.3417,136.21,136.17,0.8513774]
[1719420514320,7.3411,136.22,136.17,0.8513774]
[1719420514515,20.0,136.21,136.17,0.8513774]
[1719420515096,7.3411,136.22,136.17,0.8513774]
[1719420515311,20.0,136.21,136.17,0.8513774]
[1719420515493,15.134,136.27,136.17,19.2099774]
[1719420515700,7.3404,136.24,136.18,7.343]
[1719420515909,20.0,136.23,136.18,7.343]
[1719420516412,7.3413,136.22,136.17,0.8513774]
[1719420516714,7.3417,136.21,136.17,0.8513774]
[1719420517116,20.0,136.23,136.17,0.8513774]
[1719420517289,7.3412,136.22,136.17,0.8513774]
[1719420517485,20.0,136.21,136.17,8.1950774]
[1719420517719,27.3406,136.23,136.17,8.1950774]
[1719420518013,27.3406,136.23,136.17,0.8513774]
[1719420518014,20.0,136.23,136.17,0.8513774]
[1719420518332,7.3409,136.23,136.18,7.3431]
[1719420518492,20.0,136.22,136.17,0.8513774]
[1719420518815,7.3411,136.22,136.17,8.1949774]
[1719420519020,20.0,136.21,136.17,8.1949774]
[1719420519611,20.0,136.21,136.18,7.3431]
[1719420519815,27.3411,136.22,136.17,8.1950774]
[1719420521239,27.3411,136.22,136.18,7.3431]
[1719420521240,20.0,136.22,136.18,7.3431]
[1719420521419,27.3411,136.22,136.17,8.1949774]
[1719420521607,7.3419,136.21,136.17,0.8513774]
[1719420522322,20.0,136.2,136.17,0.8513774]
[1719420522694,7.3427,136.19,136.17,0.8513774]
[1719420523025,20.0,136.2,136.17,0.8513774]
[1719420523409,7.3417,136.21,136.17,0.8513774]
[1719420523611,20.0,136.23,136.17,0.8513774]
[1719420523612,7.3412,136.22,136.17,8.1949774]
[1719420523812,20.0,136.21,136.17,8.1949774]
[1719420524402,27.3416,136.21,136.17,0.8513774]
[1719420524615,7.3421,136.2,136.17,0.8513774]
[1719420524921,20.17,136.21,136.17,0.8513774]
[1719420525096,7.3418,136.21,136.17,0.8513774]
[1719420525419,20.0,136.2,136.17,0.8513774]
[1719420525729,20.0,136.22,136.19,7.3424]
[1719420526029,7.3394,136.25,136.18,6.4813]
[1719420526203,7.3393,136.26,136.21,7.3413]
[1719420526403,7.3396,136.25,136.2,25.6964]
[1719420526617,18.96668162,136.27,136.2,25.6964]
[1719420526618,7.34,136.24,136.2,25.6964]
[1719420526809,7.3397,136.25,136.2,18.3545]
[1719420527122,7.3395,136.25,136.21,7.3412]
[1719420527421,20.0,136.24,136.21,7.3412]
[1719420527730,27.3395,136.25,136.2,25.6966]
[1719420529520,20.0,136.25,136.18,6.4813]
[1719420529706,20.0,136.26,136.19,0.17]
[1719420530019,7.3397,136.25,136.2,7.3417]
[1719420530230,27.34,136.24,136.2,7.3417]
[1719420530435,7.3426,136.19,136.18,6.4813]
[1719420530593,3.83268162,136.23,136.18,6.4813]
[1719420530798,0.17,136.22,136.17,0.8513774]
[1719420530998,23.83268162,136.23,136.17,0.8513774]
[1719420531226,7.3417,136.21,136.17,0.8513774]
[1719420531919,7.3411,136.22,136.17,8.1948774]
[1719420532123,20.0,136.21,136.17,8.1948774]
[1719420532334,20.0,136.21,136.18,7.3431]
[1719420532823,20.0,136.22,136.18,7.3431]
[1719420533027,20.0,136.22,136.19,25.6987]
[1719420533329,20.0,136.23,136.21,7.3415]
[1719420533528,20.0,136.24,136.19,18.3563]
[1719420533724,7.34,136.24,136.19,18.3563]
[1719420533910,20.0,136.23,136.21,7.3415]
[1719420534107,20.0,136.23,136.19,18.3563]
[1719420534303,27.341,136.23,136.18,0.17]
[1719420534523,20.0,136.24,136.2,7.342]
[1719420534712,27.34,136.24,136.19,7.3425]
[1719420535607,7.3409,136.23,136.18,25.7005]
[1719420535818,7.3409,136.23,136.19,7.3426]
[1719420536022,27.34,136.24,136.2,7.342]
[1719420536223,27.34,136.24,136.18,18.3574]
[1719420536534,27.34,136.24,136.19,7.3423]
[1719420536826,27.34,136.24,136.19,7.3425]
[1719420537131,20.0,136.24,136.17,8.3649774]
[1719420537306,20.0,136.25,136.17,1.0213774]
[1719420537509,7.3405,136.24,136.18,7.3427]
[1719420537825,20.0,136.23,136.19,7.3425]
[1719420538407,27.3406,136.23,136.19,7.3425]
[1719420539006,20.0,136.23,136.19,7.3425]
[1719420539207,20.0,136.23,136.19,18.3565]
[1719420539404,20.0,136.27,136.19,18.3565]
[1719420539725,23.83268162,136.27,136.21,7.3416]
[1719420540237,23.83268162,136.27,136.2,7.3419]
[1719420540534,7.3401,136.24,136.19,25.699]
[1719420540830,20.0,136.23,136.19,18.3565]
[1719420541037,20.0,136.23,136.2,7.512]
[1719420541243,20.0,136.23,136.19,25.699]
[1719420541415,20.0,136.23,136.2,7.3419]
[1719420541615,20.0,136.23,136.2,7.342]
[1719420542132,27.34,136.24,136.19,25.6989]
[1719420542721,15.5487,136.23,136.17,8.3649774]
[1719420542941,27.3415,136.22,136.17,8.3649774]
[1719420543606,7.3419,136.21,136.17,0.8513774]
[1719420543827,27.3412,136.22,136.17,8.1949774]
[1719420544130,7.3417,136.21,136.17,0.8513774]
[1719420544336,7.3417,136.21,136.17,8.1950774]
[1719420544510,27.3412,136.22,136.17,8.1950774]
[1719420544705,27.3412,136.22,136.18,7.3431]
[1719420545439,7.3394,136.25,136.2,7.3416]
[1719420545623,20.0,136.24,136.21,7.3415]
[1719420545830,7.3394,136.25,136.2,18.3552]
[1719420546221,7.3394,136.25,136.21,7.3412]
[1719420546423,7.3391,136.26,136.21,7.3412]
[1719420546617,7.3385,136.27,136.22,18.3523]
[1719420546836,7.338,136.28,136.23,7.3402]
[1719420547214,7.3416,136.21,136.19,16.4964]
[1719420547528,7.3405,136.23,136.19,34.8527]
[1719420547733,7.341,136.22,136.18,6.4027]
[1719420547935,3.83268162,136.27,136.17,0.8513774]
[1719420548122,18.3487,136.25,136.17,0.8513774]
[1719420548318,20.17,136.24,136.17,0.8513774]
[1719420548514,7.3419,136.21,136.17,0.8513774]
[1719420548731,20.17,136.24,136.17,0.8513774]
[1719420548732,18.3514,136.23,136.17,0.8513774]
[1719420548931,36.3551,136.22,136.17,0.8513774]
[1719420549454,7.3432,136.18,136.17,0.8513774]
[1719420549623,7.3428,136.19,136.17,0.8513774]
[1719420549822,36.3551,136.22,136.17,0.8513774]
[1719420550654,7.3421,136.2,136.17,0.8513774]
[1719420551543,54.708,136.22,136.17,0.8513774]
[1719420551927,36.3551,136.22,136.17,0.8513774]
[1719420552253,7.3419,136.21,136.17,0.8513774]
[1719420552422,20.0,136.2,136.17,8.1950774]
[1719420552627,20.0,136.2,136.17,0.8513774]
[1719420552944,7.3432,136.18,136.17,0.8513774]
[1719420553121,7.3428,136.19,136.17,0.8513774]
[1719420554921,7.3423,136.2,136.17,0.8513774]
[1719420555550,7.3429,136.19,136.17,0.8513774]
[1719420555730,20.0,136.24,136.17,0.8513774]
[1719420555929,7.342,136.21,136.17,0.8513774]
[1719420556130,20.0,136.2,136.17,0.8513774]
[1719420556924,7.3422,136.2,136.17,0.8513774]
[1719420557126,7.3428,136.19,136.17,0.8513774]
[1719420557337,7.3423,136.2,136.17,0.8513774]
[1719420557649,7.3432,136.19,136.17,0.8513774]
[1719420557850,7.3422,136.2,136.17,0.8513774]
[1719420558037,7.3424,136.2,136.17,0.8513774]
[1719420558235,7.3428,136.19,136.17,0.8513774]
[1719420558963,7.3421,136.2,136.17,0.8513774]
[1719420560556,7.3428,136.19,136.17,0.8513774]
[1719420560749,7.3432,136.18,136.17,0.8513774]
[1719420561056,7.343,136.19,136.17,0.8513774]
[1719420561267,7.3432,136.18,136.17,0.8513774]
[1719420561548,18.5242,136.21,136.17,0.8513774]
[1719420561549,7.3428,136.19,136.17,0.8513774]
[1719420561760,7.3423,136.2,136.17,0.8513774]
[1719420562345,0.17,136.21,136.17,0.8513774]
[1719420562552,7.3421,136.2,136.17,0.8513774]
[1719420562967,7.5118,136.21,136.17,0.8513774]
[1719420563263,27.3423,136.2,136.17,0.8513774]
[1719420563446,7.3423,136.2,136.17,0.8513774]
[1719420563646,20.17,136.23,136.17,0.8513774]
[1719420563847,7.3418,136.21,136.17,8.1950774]
[1719420564044,27.3422,136.2,136.17,0.8513774]
[1719420564242,7.3418,136.21,136.17,0.8513774]
[1719420564449,20.0,136.2,136.17,0.8513774]
[1719420564959,20.0,136.2,136.18,25.701]
[1719420565154,27.3406,136.23,136.18,25.701]
[1719420565354,27.3406,136.23,136.17,0.8513774]
[1719420565355,38.3515,136.23,136.17,0.8513774]
[1719420565664,7.3422,136.2,136.17,0.8513774]
[1719420565871,7.3429,136.19,136.17,0.8513774]
[1719420566045,18.355,136.21,136.17,0.8513774]
[1719420566250,7.3428,136.19,136.17,0.8513774]
[1719420567236,7.3423,136.2,136.17,0.8513774]
[1719420567433,7.3427,136.19,136.17,0.8513774]
[1719420568051,7.3423,136.2,136.17,0.8513774]
[1719420568557,7.3416,136.21,136.17,0.8513774]
[1719420568757,20.0,136.2,136.17,0.8513774]
[1719420569245,27.3421,136.2,136.17,0.8513774]
[1719420569564,20.0,136.2,136.17,0.8513774]
[1719420570157,27.3422,136.2,136.17,0.8513774]
[1719420570943,20.0,136.2,136.17,0.8513774]
[1719420571650,20.0,136.2,136.17,8.1950774]
[1719420571962,27.3417,136.21,136.17,8.1950774]
[1719420572643,20.0,136.21,136.17,8.1950774]
[1719420573256,27.3416,136.21,136.17,8.1950774]
[1719420573457,20.0,136.21,136.17,8.1950774]
[1719420573865,27.3416,136.21,136.17,8.1950774]
[1719420574245,20.0,136.21,136.18,7.3431]
[1719420574654,20.0,136.21,136.18,24.9799]
[1719420574864,20.0,136.25,136.17,0.8513774]
[1719420575052,7.3432,136.18,136.17,0.8513774]
[1719420575347,3.83268162,136.22,136.17,0.8513774]
[1719420575551,7.3415,136.22,136.17,0.8513774]
[1719420575758,20.0,136.21,136.17,8.1949774]
[1719420575959,20.0,136.21,136.17,0.8513774]
[1719420576180,20.0,136.21,136.17,8.1949774]
[1719420576348,20.0,136.25,136.17,0.8513774]
[1719420576553,0.17,136.24,136.17,0.8513774]
[1719420576849,49.00268162,136.24,136.17,0.8513774]
[1719420577155,20.0,136.23,136.17,0.8513774]
[1719420577357,0.17,136.22,136.17,0.8513774]
[1719420577747,7.3421,136.2,136.17,0.8513774]
[1719420578259,0.17,136.22,136.17,0.8513774]
[1719420578456,7.3432,136.18,136.17,0.8513774]
[1719420578662,27.6832,136.18,136.17,0.8513774]
[1719420580774,27.6832,136.18,136.15,22.0]
[1719420580775,51.9845,136.16,136.15,5.3334]
[1719420580976,49.9645,136.16,136.15,5.3334]
[1719420581174,57.99066692,136.16,136.15,5.3334]
[1719420581868,51.39366692,136.16,136.15,5.3334]
[1719420582080,43.7075,136.16,136.15,1.8334]
[1719420582280,43.7075,136.16,136.15,0.3334]
[1719420582450,51.88830795,136.16,136.15,0.3334]
[1719420583155,52.05830795,136.16,136.15,0.3334]
[1719420584785,74.07830795,136.16,136.15,0.3334]
[1719420585279,119.07830795,136.16,136.15,0.3334]
[1719420585651,7.3474,136.11,136.06,18.3734]
[1719420585977,20.0,136.1,136.05,1.20329124]
[1719420586174,27.3479,136.1,136.04,21.3536]
[1719420586347,0.17,136.09,136.03,0.8513774]
[1719420586555,7.3505,136.05,136.03,0.8513774]
[1719420586858,0.34,136.09,135.82,7.3625]
[1719420586859,7.3583,135.9,135.82,7.3625]
[1719420587046,122.02,135.98,135.76,0.8513774]
[1719420587263,7.3583,135.9,135.89,7.74e-05]
[1719420587474,27.3583,135.9,135.89,7.74e-05]
[1719420587853,18.4027,135.85,135.76,0.8513774]
[1719420588053,39.33512777,135.85,135.76,0.8513774]
[1719420588351,40.93242777,135.84,135.76,0.8513774]
[1719420588546,7.3643,135.79,135.76,0.8513774]
[1719420588862,7.3643,135.8,135.76,0.8513774]
[1719420589048,7.3631,135.82,135.76,8.2171774]
[1719420589255,20.0,135.84,135.76,0.8513774]
[1719420589448,20.0,135.84,135.79,18.4105]
[1719420589650,18.3932,135.92,135.82,7.3621]
[1719420589851,195.84892248,135.98,135.82,7.3621]
[1719420589852,7.3583,135.9,135.84,7.3615]
[1719420590071,18.3892,135.95,135.82,18.4064]
[1719420590072,7.3577,135.92,135.85,7.361]
[1719420590254,20.0,135.91,135.85,7.361]
[1719420590455,20.0,135.91,135.78,136.823]
[1719420590678,20.0,135.91,135.87,7.3599]
[1719420590852,20.0,135.93,135.88,52.359]
[1719420591158,99.6816041,135.98,135.88,45.0]
[1719420591354,7.3567,135.93,135.88,45.0]
[1719420591554,20.0,135.97,135.88,45.0]
[1719420591780,7.598806,135.97,135.88,45.0]
[1719420592076,14.953306,135.97,135.91,7.3578]
[1719420592382,255.6,136.01,135.92,45.0]
[1719420592556,97.43908148,136.06,135.93,0.17]
[1719420592975,105.02915113,136.06,135.96,7.3545]
[1719420593185,105.02915113,136.06,135.95,7.3556]
[1719420593474,105.02915113,136.06,135.97,25.7403]
[1719420593651,7.3508,136.04,135.98,7.3538]
[1719420593852,7.3502,136.05,135.99,7.3534]
[1719420594052,7.3509,136.04,135.97,18.3863]
[1719420594277,255.6,136.07,135.99,7.3533]
[1719420594478,20.0,136.03,135.98,7.3539]
[1719420594659,20.0,136.06,135.97,18.3863]
[1719420594866,255.6,136.07,135.97,18.3863]
[1719420595076,255.6,136.07,136.0,7.3529]
[1719420595270,7.3502,136.05,135.98,7.3535]
[1719420595457,7.3507,136.04,135.99,7.3534]
[1719420595659,7.3507,136.04,135.98,7.3539]
[1719420595854,263.1939267,136.07,135.96,7.3546]
[1719420596074,18.3753,136.06,135.95,6.3632]
[1719420596318,20.0,136.05,135.95,6.3632]
[1719420596456,7.3526,136.01,135.95,13.7188]
[1719420596663,7.3518,136.02,135.96,7.355]
[1719420596866,7.3518,136.02,135.96,7.3549]
[1719420597066,7.3525,136.01,135.95,6.3632]
[1719420597258,7.3525,136.01,135.95,13.7186]
[1719420597586,20.0,136.0,135.94,15.5034]
[1719420597762,20.0,136.0,135.91,18.394]
[1719420597956,20.17,136.01,135.91,25.7512]
[1719420598151,42.19,136.01,135.91,25.7512]
[1719420598352,18.5533,136.0,135.89,6.6639]
[1719420598560,7.3546,135.97,135.9,18.3946]
[1719420598769,7.3557,135.95,135.9,25.7528]
[1719420598964,7.3552,135.96,135.91,7.3576]
[1719420599169,7.3546,135.97,135.91,7.3576]
[1719420599367,7.3555,135.96,135.9,25.7527]
[1719420599575,0.17,136.0,135.92,7.3571]
[1719420599859,20.0,136.0,135.92,7.3571]
[1719420600064,7.3541,135.98,135.92,7.3571]
[1719420600268,20.0,135.97,135.92,18.3922]
[1719420600462,20.0,135.97,135.93,7.3562]
[1719420600774,20.0,135.97,135.92,25.7494]
[1719420600962,7.3551,135.96,135.92,18.3922]
[1719420601308,7.3563,135.94,135.89,6.6639]
[1719420601591,7.3551,135.96,135.9,7.3578]
[1719420601796,20.0,135.98,135.92,7.3568]
[1719420601797,27.354,135.98,135.92,7.3568]
[1719420601974,20.0,135.98,135.92,7.3568]
[1719420602172,7.3544,135.98,135.93,7.3564]
[1719420602466,20.0,135.97,135.92,25.7496]
[1719420602693,20.0,135.97,135.92,18.3924]
[1719420602694,27.3549,135.97,135.92,18.3924]
[1719420602895,20.0,135.97,135.89,25.0604]
[1719420603077,18.552,136.01,135.89,6.6639]
[1719420603394,20.0,136.0,135.95,7.3555]
[1719420603571,20.0,136.0,135.94,7.3561]
[1719420603994,18.3806,136.02,135.93,18.3911]
[1719420604364,7.353,136.0,135.94,7.356]
[1719420604788,7.353,136.0,135.95,7.3556]
[1719420604989,7.3535,135.99,135.93,25.7473]
[1719420605193,7.3542,135.98,135.93,25.7473]
[1719420605572,3.83268162,136.03,135.93,25.7477]
[1719420605787,0.17,136.02,135.93,25.7477]
[1719420605988,0.17,136.02,135.94,7.356]
[1719420606192,18.7203,136.02,135.93,25.7478]
[1719420606387,7.3529,136.0,135.93,18.3911]
[1719420606588,3.83268162,136.03,135.97,7.3541]
[1719420606891,20.0,136.03,135.99,18.3831]
[1719420607096,25.85268162,136.08,135.96,18.3869]
[1719420607283,7.59738143,136.07,135.96,18.3869]
[1719420607477,11.43006305,136.07,135.94,15.944]
[1719420607680,7.3525,136.01,135.94,15.944]
[1719420607890,18.375,136.06,135.95,18.3885]
[1719420608082,40.395,136.06,135.94,15.944]
[1719420608279,7.3524,136.01,135.97,18.3857]
[1719420608480,7.353,136.0,135.94,41.6891]
[1719420608800,7.3546,135.97,135.94,15.944]
[1719420609004,20.0,135.99,135.88,38.2439]
[1719420609176,20.0,135.99,135.95,7.3555]
[1719420609380,22.20918162,136.05,135.95,18.3877]
[1719420609585,20.0,136.04,135.9,22.02]
[1719420609786,7.3512,136.04,135.98,7.3536]
[1719420609980,27.3513,136.03,135.98,7.3536]
[1719420610179,3.83268162,136.05,135.99,7.3533]
[1719420610409,3.83268162,136.05,135.97,18.3855]
[1719420610902,7.3512,136.04,135.99,7.3534]
[1719420611106,20.0,136.03,135.97,18.3855]
[1719420611283,7.3526,136.01,135.97,18.3855]
[1719420611599,18.3784,136.03,135.94,7.3561]
[1719420611901,20.0,136.02,135.93,18.3918]
[1719420612099,20.0,136.02,135.93,7.3565]
[1719420612100,7.3541,135.98,135.93,7.3565]
[1719420612507,7.3535,135.99,135.94,7.3561]
[1719420613079,7.3531,136.0,135.94,7.3561]
[1719420613283,20.0,135.99,135.94,18.3901]
[1719420613492,7.3533,136.0,135.95,7.3555]
[1719420613818,7.3518,136.02,135.97,7.3544]
[1719420614011,25.97088143,136.07,135.98,7.3539]
[1719420614012,7.3514,136.03,135.98,7.3539]
[1719420614307,20.0,136.02,135.98,7.3539]
[1719420614980,27.3518,136.02,135.97,7.3543]
[1719420615180,7.3529,136.01,135.96,25.7422]
[1719420615907,20.0,136.02,135.93,55.172]
[1719420616091,18.3758,136.05,135.95,7.3553]
[1719420616092,7.3532,136.0,135.95,7.3553]
[1719420616297,20.0,136.04,135.95,18.3883]
[1719420616298,7.3523,136.02,135.95,18.3883]
[1719420616611,27.3508,136.04,135.99,7.3533]
[1719420616796,7.3505,136.05,136.0,7.3527]
[1719420616992,11.43006305,136.07,135.99,18.3832]
[1719420617202,7.3508,136.04,135.99,25.7363]
[1719420617405,7.3506,136.05,136.0,7.3529]
[1719420617607,7.3508,136.04,135.99,25.7365]
[1719420618292,7.352,136.02,135.97,7.3542]
[1719420618618,7.3524,136.01,135.96,25.9119]
[1719420618910,7.3554,135.96,135.91,7.3576]
[1719420619227,7.3556,135.95,135.9,25.7531]
[1719420619588,7.3556,135.96,135.9,7.3583]
[1719420619786,7.3561,135.94,135.89,32.4196]
[1719420620017,7.3569,135.93,135.89,25.0608]
[1719420620215,7.3563,135.94,135.89,32.4196]
[1719420620395,7.3563,135.94,135.9,7.3583]
[1719420620602,18.3861,135.98,135.9,7.3583]
[1719420620603,7.3557,135.95,135.9,7.3583]
[1719420620795,7.3562,135.94,135.89,32.4196]
[1719420620995,7.3558,135.95,135.9,7.3583]
[1719420621206,7.3562,135.94,135.89,25.0608]
[1719420621525,7.3562,135.94,135.89,32.4194]
[1719420622190,7.3555,135.96,135.89,25.0608]
[1719420622393,20.0,135.95,135.91,7.3574]
[1719420622584,7.3565,135.94,135.89,32.4193]
[1719420623091,20.0,135.95,135.89,25.0608]
[1719420623306,20.0,135.95,135.9,7.3581]
[1719420623307,7.3557,135.95,135.9,7.3581]
[1719420623506,7.3562,135.94,135.89,25.0608]
[1719420623712,7.3562,135.94,135.89,32.4195]
[1719420624102,7.3568,135.93,135.89,25.0608]
[1719420624497,7.3563,135.94,135.89,32.4195]
[1719420624892,7.3568,135.93,135.89,25.0608]
[1719420625712,7.3563,135.94,135.89,32.4196]
[1719420627194,20.0,135.97,135.89,25.0608]
[1719420627519,7.356,135.95,135.91,18.3942]
[1719420627721,20.0,135.97,135.91,18.3942]
[1719420627722,7.3552,135.96,135.91,25.7519]
[1719420628098,7.356,135.95,135.9,0.17]
[1719420628405,7.3552,135.96,135.9,18.5654]
[1719420628593,20.0,135.97,135.95,7.3555]
[1719420628793,7.57986872,136.02,135.94,7.3559]
[1719420628794,20.0,135.98,135.94,7.3559]
[1719420629008,20.0,135.98,135.93,18.3916]
[1719420629199,7.3542,135.98,135.93,7.3564]
[1719420629401,20.0,136.0,135.95,7.3555]
[1719420629402,7.3529,136.0,135.95,7.3555]
[1719420629624,22.21038162,136.04,135.94,25.7458]
[1719420629625,7.3539,135.99,135.94,25.7458]
[1719420630615,7.3531,136.0,135.95,7.3555]
[1719420630820,27.3535,135.99,135.94,25.746]
[1719420631122,7.3527,136.01,135.96,25.7423]
[1719420631328,20.0,136.0,135.96,25.7423]
[1719420632095,20.0,136.0,135.96,18.3876]
[1719420632292,27.353,136.0,135.96,25.7425]
[1719420632516,20.0,136.0,135.89,43.4559]
[1719420632696,20.0,136.0,135.92,7.3572]
[1719420632895,7.3549,135.97,135.92,7.3572]
[1719420633302,7.3551,135.96,135.92,7.3572]
[1719420633511,18.3826,136.0,135.91,18.3943]
[1719420633815,7.3555,135.96,135.91,18.3943]
[1719420634025,20.0,135.99,135.91,18.3943]
[1719420634319,7.3552,135.96,135.91,25.752]
[1719420634527,20.0,135.99,135.91,18.3943]
[1719420634728,20.0,135.99,135.93,18.391]
[1719420634909,3.83268162,136.02,135.93,25.7475]
[1719420634910,23.83268162,136.02,135.93,25.7475]
[1719420635111,18.381,136.01,135.92,7.3572]
[1719420635314,7.3549,135.97,135.92,7.3572]
[1719420635823,7.3539,135.99,135.95,7.3555]
[1719420636024,27.3541,135.98,135.94,18.3901]
[1719420636327,20.0,136.0,135.92,7.3571]
[1719420636900,7.3542,135.98,135.93,7.3566]
[1719420637225,7.3556,135.95,135.9,7.3578]
[1719420637408,7.3583,135.9,135.89,6.6639]
[1719420637610,7.3574,135.92,135.89,6.6639]
[1719420638127,7.3568,135.93,135.89,6.6639]
[1719420638308,18.3875,135.97,135.9,7.3582]
[1719420638309,7.3561,135.95,135.9,7.3582]
[1719420638501,20.0,135.94,135.9,7.3581]
[1719420638711,20.0,135.94,135.89,25.0607]
[1719420639011,20.0,135.99,135.89,25.0607]
[1719420639222,7.356,135.95,135.91,7.3576]
[1719420639423,7.3552,135.96,135.91,7.3576]
[1719420639730,27.3557,135.95,135.9,7.3581]
[1719420640029,7.3557,135.95,135.9,7.3581]
[1719420640407,7.3549,135.97,135.92,7.3568]
[1719420640913,27.3551,135.96,135.91,25.7517]
[1719420641117,20.0,135.96,135.92,7.357]
[1719420641527,20.0,135.96,135.93,7.3567]
[1719420641907,7.3565,135.94,135.89,14.0222]
[1719420642211,7.3567,135.93,135.89,14.0227]
[1719420642415,20.0,135.96,135.89,14.0227]
[1719420642615,7.3583,135.9,135.89,6.6639]
[1719420642820,7.3583,135.9,135.88,16.2239]
[1719420643128,7.3574,135.92,135.87,18.3998]
[1719420643315,7.3578,135.91,135.87,18.3998]
[1719420643516,18.3899,135.95,135.86,7.36]
[1719420643822,7.3581,135.91,135.86,7.36]
[1719420644035,7.3581,135.91,135.86,25.7611]
[1719420644405,7.3581,135.91,135.87,7.3598]
[1719420644628,20.0,135.94,135.85,6.4342]
[1719420644837,7.3598,135.88,135.85,6.4342]
[1719420645155,7.36,135.87,135.85,6.4342]
[1719420645433,7.3596,135.88,135.85,6.4342]
[1719420646340,0.17,135.93,135.81,18.4069]
[1719420646629,0.17,135.93,135.81,7.3631]
[1719420646630,7.3606,135.86,135.81,7.3631]
[1719420646809,7.361,135.85,135.8,13.9185]
[1719420647233,18.399,135.88,135.8,6.5549]
[1719420647537,7.3608,135.86,135.8,13.9186]
[1719420647719,7.3608,135.86,135.81,7.3631]
[1719420647922,20.0,135.85,135.8,6.5549]
[1719420648122,7.3612,135.85,135.8,6.5549]
[1719420648319,20.0,135.84,135.8,6.5549]
[1719420648733,15.9889,135.9,135.8,24.9636]
[1719420648907,7.3603,135.87,135.8,24.9636]
[1719420649114,27.3609,135.86,135.81,7.3631]
[1719420649345,38.3977,135.89,135.8,6.5549]
[1719420649636,7.3604,135.87,135.82,7.3623]
[1719420649833,27.3605,135.86,135.81,7.3631]
[1719420650035,27.3605,135.86,135.81,25.7701]
[1719420650215,27.3605,135.86,135.81,25.77]
[1719420650556,20.0,135.86,135.81,18.407]
[1719420650840,15.9889,135.9,135.81,18.407]
[1719420650841,20.0,135.89,135.81,18.407]
[1719420651044,7.3601,135.87,135.82,7.3626]
[1719420651234,20.0,135.86,135.82,7.3626]
[1719420651434,18.3927,135.93,135.83,18.4048]